bitfinex-derivatives/quotes_ETHF0:USTF0_20250908
["timestamp","ask_amount","ask_price","bid_price","bid_amount"]
[1757300811016,0.235,4310.5,4310.1,0.2973]
[1757300811419,0.235,4310.5,4310.1,0.2119]
[1757300811613,0.235,4310.5,4310.4,0.2973]
[1757300812717,3.4428,4310.5,4310.4,0.2973]
[1757300814017,3.2078,4310.5,4310.4,0.7116]
[1757300814317,0.235,4310.5,4310.4,0.7116]
[1757300814816,3.2078,4311.2,4311.1,0.2973]
[1757300815017,3.96561329,4311.2,4311.1,0.7116]
[1757300815418,3.96561329,4311.2,4311.1,0.5092]
[1757300818420,3.73061329,4311.2,4311.1,0.5092]
[1757300818626,3.96561329,4311.2,4311.1,0.7116]
[1757300818824,0.235,4311.2,4311.1,0.7116]
[1757300819027,33.426,4311.5,4311.4,0.4143]
[1757300819327,34.18385275,4311.5,4311.4,0.7116]
[1757300819527,33.661,4311.5,4311.4,0.7116]
[1757300820425,34.66893947,4311.5,4311.4,0.2973]
[1757300822829,34.66893947,4311.5,4311.4,0.5092]
[1757300823632,34.66893947,4311.5,4311.4,0.2973]
[1757300824631,34.43393947,4311.5,4311.4,0.2973]
[1757300824833,34.66893947,4311.5,4311.4,0.2973]
[1757300825332,38.90087947,4311.5,4310.7,0.0695]
[1757300825632,1.00793947,4310.9,4310.8,0.2921]
[1757300825833,1.24293947,4310.9,4310.8,0.2921]
[1757300827031,1.24293947,4310.9,4310.5,0.1242]
[1757300827032,1.24293947,4310.9,4310.5,0.4163]
[1757300827232,0.23198,4310.8,4310.1,0.2921]
[1757300827430,1.00793947,4310.2,4310.0,0.4154]
[1757300827629,0.75793694,4310.1,4309.5,0.1233]
[1757300827837,0.75793694,4310.1,4308.6,3.2078]
[1757300827838,0.4114,4308.7,4308.6,3.2078]
[1757300828132,1.0752,4308.7,4308.6,3.2078]
[1757300828338,1.0752,4308.7,4308.6,3.4114]
[1757300828535,1.0752,4308.7,4308.6,0.2036]
[1757300829839,1.0752,4308.7,4308.6,0.4957]
[1757300830735,1.0752,4308.7,4308.6,0.6932]
[1757300830923,0.7624,4308.7,4308.6,0.6932]
[1757300833132,1.0752,4308.7,4308.6,0.6932]
[1757300833536,0.7624,4308.7,4308.6,0.6932]
[1757300835438,1.0752,4308.7,4308.6,0.6932]
[1757300839241,0.7624,4308.7,4308.6,0.6932]
[1757300840932,0.116,4308.7,4308.6,0.6932]
[1757300841243,3.4194,4309.7,4309.6,0.6932]
[1757300841441,3.932,4309.7,4309.6,0.6932]
[1757300841831,3.2078,4309.7,4309.6,0.6932]
[1757300842938,3.2078,4310.2,4309.6,4.23203999]
[1757300843143,0.4167,4311.0,4310.1,1.42555947]
[1757300843442,0.4167,4311.0,4309.7,3.4438]
[1757300843443,0.6283,4311.0,4310.9,1.00793947]
[1757300845247,0.2116,4310.9,4310.5,4.21573947]
[1757300845542,0.3155,4311.0,4310.5,4.63331947]
[1757300845738,0.1039,4311.0,4310.5,4.63331947]
[1757300846138,0.3128,4310.9,4310.5,4.63331947]
[1757300846735,0.1039,4311.0,4310.5,4.63331947]
[1757300846942,0.3155,4311.0,4310.5,4.63331947]
[1757300847143,0.1039,4311.0,4310.5,4.63331947]
[1757300847338,0.3128,4310.9,4310.5,4.63331947]
[1757300847642,0.7242,4310.6,4310.5,3.2078]
[1757300848041,0.5244,4310.6,4310.5,3.2078]
[1757300848445,0.5244,4310.6,4310.5,4.06065871]
[1757300850838,0.3128,4310.6,4310.5,4.06065871]
[1757300852548,0.3128,4310.6,4310.5,4.29565871]
[1757300853551,0.7242,4310.6,4310.5,3.4428]
[1757300853845,1.57705871,4310.6,4310.3,0.0696]
[1757300854050,0.7242,4310.4,4310.3,0.0696]
[1757300854448,0.1251,4310.5,4309.9,3.2078]
[1757300854449,0.8493,4310.0,4309.9,3.6089]
[1757300854647,0.8493,4310.0,4309.9,3.901]
[1757300855146,0.8493,4310.0,4309.9,3.6089]
[1757300855648,0.8493,4310.0,4309.9,3.9076]
[1757300856151,0.8493,4310.0,4309.9,3.6089]
[1757300856546,0.8493,4310.0,4309.9,3.9076]
[1757300856945,0.3206,4310.4,4310.0,0.0966]
[1757300857250,0.9632,4310.9,4310.8,0.207]
[1757300858450,0.9632,4310.9,4310.6,0.0695]
[1757300859350,0.7282,4310.9,4310.6,0.0695]
[1757300859545,0.7282,4310.9,4310.8,0.207]
[1757300860152,0.7282,4310.9,4310.6,0.0695]
[1757300861559,0.7282,4310.9,4310.8,0.207]
[1757300861761,0.7282,4310.9,4310.8,0.7038]
[1757300861954,0.7282,4310.9,4310.8,0.207]
[1757300862256,0.7282,4310.9,4310.6,0.0695]
[1757300863855,0.4076,4310.7,4310.6,0.0695]
[1757300864059,0.7282,4310.7,4310.6,0.0695]
[1757300864259,0.3206,4310.6,4309.9,4.06065871]
[1757300864560,0.7282,4310.7,4310.6,0.4051]
[1757300865057,0.7282,4310.7,4310.6,0.207]
[1757300865662,0.3206,4310.7,4310.6,0.7038]
[1757300865859,0.3206,4310.9,4310.7,0.2987]
[1757300866059,0.3206,4310.9,4310.8,1.55665871]
[1757300866561,0.5279,4310.9,4310.8,1.55665871]
[1757300867664,0.3206,4310.9,4310.8,1.55665871]
[1757300868166,0.5279,4311.4,4311.3,0.7038]
[1757300868661,0.7282,4311.4,4311.3,0.4051]
[1757300870162,1.25051068,4311.4,4311.3,0.4051]
[1757300870360,1.25051068,4311.4,4311.3,0.207]
[1757300872458,0.1283,4311.0,4310.9,4.26765871]
[1757300872766,0.8565,4311.0,4310.9,3.2078]
[1757300873265,0.8565,4311.0,4310.9,3.4148]
[1757300874163,0.3206,4311.0,4310.9,3.6129]
[1757300874368,0.5115,4311.5,4311.4,0.207]
[1757300874667,1.03433338,4311.5,4311.4,0.207]
[1757300874863,1.35493338,4311.5,4311.4,0.4051]
[1757300877267,0.3356,4312.0,4311.9,0.4051]
[1757300877465,0.8565,4312.0,4311.9,0.4051]
[1757300877666,1.37918238,4312.0,4311.9,0.4051]
[1757300878063,1.37918238,4312.0,4311.9,0.207]
[1757300878269,0.8565,4311.5,4311.4,3.2078]
[1757300879060,0.8565,4311.5,4311.4,3.4148]
[1757300879257,0.8565,4311.5,4311.4,3.6129]
[1757300880769,0.6562,4311.5,4311.4,4.76445871]
[1757300881071,0.8565,4311.5,4311.4,4.76445871]
[1757300881269,0.8565,4311.5,4311.4,3.6129]
[1757300881962,0.8565,4311.5,4311.4,3.9116]
[1757300882163,0.8565,4311.5,4311.4,3.6129]
[1757300882562,0.8565,4311.5,4311.4,3.9116]
[1757300882763,0.8565,4311.5,4311.4,3.6129]
[1757300885673,0.5538,4311.9,4311.4,4.46575871]
[1757300885866,0.7672,4311.9,4311.8,0.7141]
[1757300886168,0.9701,4311.9,4311.8,0.4092]
[1757300887376,0.9701,4311.9,4311.8,0.2013]
[1757300887774,0.854,4311.5,4311.4,3.4428]
[1757300888577,0.854,4311.5,4311.0,0.235]
[1757300890175,0.854,4311.5,4311.0,0.5399]
[1757300890470,0.5322,4311.4,4311.3,0.7141]
[1757300890678,0.235,4311.9,4311.3,3.617]
[1757300890974,1.25772511,4311.8,4311.7,0.4092]
[1757300891470,0.7351,4311.8,4311.7,0.4092]
[1757300891870,0.7351,4311.8,4311.7,0.7141]
[1757300892575,0.7351,4311.8,4311.7,0.4092]
[1757300895272,1.25811,4311.8,4311.7,0.4092]
[1757300895673,1.05521,4311.8,4311.7,0.7141]
[1757300895879,0.7351,4311.8,4311.7,0.7141]
[1757300896080,0.7351,4311.8,4311.7,0.4092]
[1757300896986,0.5322,4311.8,4311.7,0.7141]
[1757300897277,0.4163,4312.3,4312.2,0.4092]
[1757300897583,1.25827675,4312.3,4312.2,0.4092]
[1757300898684,0.52317675,4312.3,4312.2,0.7141]
[1757300898877,3.3361,4313.0,4312.8,0.2013]
[1757300898878,0.7351,4312.9,4312.8,0.2013]
[1757300899076,0.5352,4312.5,4312.4,0.2013]
[1757300899276,0.854,4312.5,4312.4,0.2013]
[1757300899985,0.4163,4312.2,4312.1,1.49705871]
[1757300900188,0.7351,4312.2,4312.1,1.49705871]
[1757300900977,0.7351,4312.2,4312.0,3.2078]
[1757300900978,0.3188,4312.1,4312.0,3.2078]
[1757300901182,0.3188,4312.1,4312.0,3.4091]
[1757300901183,0.7351,4312.1,4312.0,3.4091]
[1757300901378,0.3188,4312.1,4312.0,4.77475871]
[1757300902382,0.5322,4312.1,4312.0,4.77475871]
[1757300903179,0.7351,4312.1,4312.0,4.77475871]
[1757300903583,0.4163,4311.9,4311.8,0.4363]
[1757300903885,0.4163,4311.9,4311.8,3.6441]
[1757300903886,0.7351,4311.9,4311.8,3.6441]
[1757300904179,0.7351,4311.9,4311.8,4.1569]
[1757300907582,0.7351,4311.9,4311.8,3.617]
[1757300907782,0.7351,4311.9,4311.8,3.4091]
[1757300907982,0.7351,4311.9,4311.8,3.617]
[1757300908177,0.7351,4311.9,4311.8,3.9219]
[1757300908387,0.3188,4312.0,4311.9,0.7141]
[1757300908584,0.3188,4312.4,4311.9,0.4092]
[1757300908888,0.3188,4312.4,4312.3,0.4092]
[1757300908889,0.7351,4312.4,4312.3,0.4092]
[1757300909390,0.7351,4312.4,4312.3,0.7141]
[1757300909690,0.5322,4312.4,4312.3,1.56695871]
[1757300909889,0.3188,4312.4,4312.3,1.56695871]
[1757300910081,0.5322,4312.4,4312.3,1.56695871]
[1757300910277,0.5322,4312.4,4312.3,0.7141]
[1757300911086,0.7351,4312.4,4312.3,0.7141]
[1757300911489,0.5322,4312.4,4312.3,0.7141]
[1757300911688,3.3361,4313.0,4312.4,0.3049]
[1757300911689,0.3188,4312.9,4312.4,0.3049]
[1757300911888,0.7351,4312.9,4312.8,0.2013]
[1757300912087,1.25773882,4312.9,4312.8,0.2013]
[1757300912591,0.5352,4312.5,4312.4,0.2013]
[1757300912794,0.854,4312.5,4312.4,0.2013]
[1757300912994,0.4377,4312.5,4312.4,0.7141]
[1757300913193,0.6511,4312.5,4312.4,0.7141]
[1757300914786,0.1283,4313.0,4312.5,0.3049]
[1757300915086,1.25772271,4312.9,4312.8,0.2013]
[1757300915285,0.93892271,4312.9,4312.4,3.2078]
[1757300915482,0.1219,4312.5,4312.4,3.6214]
[1757300915693,0.6408,4312.5,4312.4,3.9331]
[1757300916393,0.8485,4312.5,4312.4,3.9331]
[1757300916590,0.1283,4313.0,4312.4,3.9331]
[1757300916791,0.1219,4312.5,4312.4,3.6214]
[1757300917094,0.5399,4312.5,4312.4,3.6214]
[1757300917287,0.1189,4313.5,4312.9,0.4136]
[1757300917484,0.3086,4313.0,4312.9,4.93981746]
[1757300917693,0.5189,4313.0,4312.9,3.9331]
[1757300918194,0.8485,4313.0,4312.9,3.6214]
[1757300919188,0.8485,4313.0,4312.9,3.9331]
[1757300919392,0.8485,4313.0,4312.9,3.6214]
[1757300919789,0.8485,4313.0,4312.9,3.9331]
[1757300919995,0.8485,4313.0,4312.9,0.7253]
[1757300919996,1.37088605,4313.0,4312.9,0.7253]
[1757300920197,0.8485,4313.0,4312.9,3.9331]
[1757300921190,1.37093064,4313.0,4312.9,3.6214]
[1757300922097,1.37093064,4313.0,4312.9,3.9331]
[1757300922684,1.37093064,4313.0,4312.9,3.6214]
[1757300923396,1.37093064,4313.0,4312.9,3.9331]
[1757300923586,0.52243064,4313.0,4312.9,3.9331]
[1757300923785,0.3086,4313.4,4312.9,3.2078]
[1757300923990,0.5399,4313.0,4312.9,3.6214]
[1757300924194,0.8485,4313.0,4312.9,3.9331]
[1757300924490,0.8485,4313.0,4312.9,3.6214]
[1757300924797,1.37099894,4313.0,4312.9,3.6214]
[1757300924999,1.37099894,4313.0,4312.6,0.235]
[1757300925000,1.37100353,4313.0,4312.6,0.235]
[1757300925299,0.7266,4312.7,4312.6,0.6486]
[1757300925794,0.7266,4312.7,4312.6,0.9603]
[1757300928294,0.7266,4312.7,4312.6,0.6486]
[1757300929404,0.7266,4312.7,4312.6,0.4499]
[1757300929598,0.7266,4312.7,4312.6,0.9603]
[1757300930299,0.7266,4312.7,4312.5,0.235]
[1757300930705,0.7266,4312.7,4312.6,0.2149]
[1757300932399,0.7266,4312.7,4312.4,3.2773]
[1757300932601,0.8485,4312.5,4312.4,0.4831]
[1757300933108,0.8485,4312.5,4312.4,0.0695]
[1757300934510,0.8485,4312.5,4312.0,0.235]
[1757300934908,0.1219,4312.0,4311.8,3.5195]
[1757300935117,0.8485,4312.0,4311.9,0.6486]
[1757300935411,0.8485,4312.0,4311.9,0.4499]
[1757300937014,0.8485,4312.0,4311.9,0.6486]
[1757300937420,0.8485,4312.0,4311.9,0.9603]
[1757300937721,0.8485,4312.0,4311.9,0.7253]
[1757300937920,0.8485,4312.0,4311.9,0.2149]
[1757300938611,0.8485,4312.0,4311.9,0.4136]
[1757300939418,0.8485,4312.0,4311.9,0.2149]
[1757300939720,0.3086,4311.9,4311.8,3.4428]
[1757300939920,0.7266,4311.9,4311.8,3.4428]
[1757300940318,0.7266,4311.9,4311.8,3.2078]
[1757300940623,0.7266,4311.9,4311.7,0.0695]
[1757300941221,0.7266,4311.4,4311.3,3.2078]
[1757300941424,0.7266,4310.9,4310.8,3.2078]
[1757300942113,0.1219,4310.5,4310.4,0.2149]
[1757300942319,0.5399,4310.5,4310.4,0.2149]
[1757300942519,0.5399,4310.5,4310.1,3.2078]
[1757300942721,0.1219,4310.5,4310.3,0.2149]
[1757300942923,0.1219,4310.5,4310.1,3.2078]
[1757300942924,0.3086,4310.3,4310.1,3.2078]
[1757300943227,0.1219,4310.0,4309.5,3.2078]
[1757300943430,0.5189,4309.6,4309.5,3.9331]
[1757300947626,0.7266,4309.6,4309.5,3.6214]
[1757300947932,0.7266,4309.6,4309.5,3.9375]
[1757300949230,0.3073,4310.4,4309.9,0.3161]
[1757300949429,0.5198,4310.4,4310.3,3.9379]
[1757300949625,0.7271,4310.4,4310.3,3.9379]
[1757300949926,0.5198,4310.4,4310.3,3.9379]
[1757300950129,0.3073,4310.9,4310.8,0.7301]
[1757300950435,0.7271,4311.3,4311.2,0.414]
[1757300950635,0.7271,4311.3,4311.2,0.7301]
[1757300951729,0.3073,4311.9,4311.2,0.414]
[1757300951934,0.5198,4311.9,4311.8,0.7301]
[1757300952134,0.7271,4311.9,4311.8,0.7301]
[1757300952731,0.1279,4312.5,4311.8,0.414]
[1757300952931,0.1279,4312.5,4311.9,0.3161]
[1757300953136,0.7271,4312.4,4312.3,0.2003]
[1757300954840,0.7271,4312.4,4312.3,0.414]
[1757300955135,1.00671746,4313.2,4312.3,0.414]
[1757300955136,0.235,4313.1,4312.3,1.73681746]
[1757300955337,0.5198,4312.9,4312.8,0.7301]
[1757300955537,0.7271,4312.9,4312.8,0.7301]
[1757300956436,0.7271,4312.9,4312.8,0.414]
[1757300956635,0.7271,4312.9,4312.8,0.2003]
[1757300956841,0.7271,4312.9,4312.4,0.3161]
[1757300957537,0.855,4312.5,4312.4,0.2003]
[1757300957941,0.5198,4312.5,4312.4,0.7301]
[1757300958238,0.3073,4312.9,4312.3,1.00671746]
[1757300958438,0.7271,4312.9,4312.8,0.414]
[1757300959841,0.7271,4312.9,4312.8,0.2003]
[1757300960139,0.7271,4312.9,4312.1,3.2078]
[1757300960140,0.4198,4312.9,4312.1,3.5239]
[1757300960344,0.235,4313.2,4312.1,3.75578]
[1757300960842,33.417,4314.1,4313.3,0.2003]
[1757300960843,0.4198,4313.4,4313.3,0.2003]
[1757300961342,0.7271,4313.4,4313.3,0.2003]
[1757300961544,0.7271,4313.4,4313.0,0.3161]
[1757300961740,0.7271,4313.4,4312.6,3.2078]
[1757300961741,0.3073,4313.3,4312.7,0.3161]
[1757300961941,0.7271,4313.3,4313.2,0.2003]
[1757300962542,0.7271,4313.3,4313.2,0.414]
[1757300963637,0.1279,4313.0,4312.6,3.2078]
[1757300963843,0.1279,4313.0,4312.6,3.9379]
[1757300964142,0.3073,4312.9,4312.8,0.414]
[1757300964444,0.5198,4312.9,4312.8,0.7301]
[1757300965044,0.7271,4312.9,4312.8,0.7301]
[1757300965449,0.5198,4312.9,4312.8,0.7301]
[1757300965644,0.2125,4313.0,4312.9,0.7301]
[1757300965839,0.5198,4313.0,4312.9,0.7301]
[1757300968347,0.3629,4313.5,4312.9,0.7301]
[1757300968548,0.3629,4313.5,4313.4,0.7301]
[1757300968549,0.5477,4313.5,4313.4,0.7301]
[1757300968749,0.4198,4313.5,4313.4,0.7301]
[1757300968954,0.1279,4314.5,4313.9,0.414]
[1757300969139,0.7271,4314.8,4314.4,1.00671746]
[1757300969344,0.7271,4314.2,4314.1,0.2003]
[1757300969743,0.7271,4314.2,4314.1,0.414]
[1757300970449,0.5477,4314.0,4313.9,3.2078]
[1757300970653,0.855,4314.0,4313.9,3.4081]
[1757300970949,0.855,4314.0,4313.9,3.6218]
[1757300973255,0.855,4314.0,4313.9,3.2078]
[1757300974558,0.855,4314.0,4313.2,1.16772162]
[1757300974559,0.855,4313.5,4313.4,3.6218]
[1757300974856,0.855,4313.5,4313.4,3.4081]
[1757300975160,0.855,4313.5,4313.4,3.2078]
[1757300975346,0.855,4313.5,4313.4,3.4081]
[1757300976155,0.855,4313.5,4313.4,0.2003]
[1757300979054,0.5477,4313.5,4313.2,0.85162162]
[1757300979254,0.7394,4313.4,4313.3,0.2087]
[1757300980055,0.7394,4313.4,4313.3,0.4214]
[1757300980456,0.7394,4313.4,4313.3,0.7431]
[1757300981454,0.7394,4313.4,4312.9,3.4428]
[1757300981658,0.5257,4313.3,4313.2,0.2087]
[1757300981865,0.7394,4313.3,4313.2,0.2087]
[1757300982160,0.7394,4313.3,4313.2,0.4214]
[1757300982346,0.7394,4313.3,4313.2,0.2127]
[1757300982551,0.1279,4313.5,4312.8,0.0695]
[1757300982552,0.8618,4313.0,4312.8,0.0695]
[1757300982951,0.1224,4312.5,4312.4,3.6292]
[1757300983255,0.1224,4313.0,4312.5,0.3217]
[1757300983557,0.5501,4312.5,4312.4,3.4165]
[1757300983960,0.8618,4312.5,4312.4,3.2078]
[1757300984161,1.71342162,4312.5,4312.4,3.2078]
[1757300984364,0.1224,4312.0,4311.8,3.4428]
[1757300984557,0.4341,4312.0,4311.9,0.2087]
[1757300984857,0.8618,4312.0,4311.9,0.2087]
[1757300985063,0.8618,4312.0,4311.9,0.4214]
[1757300985262,0.8618,4312.0,4311.9,0.7431]
[1757300985558,0.8618,4312.0,4311.9,1.59472162]
[1757300986155,0.8618,4312.0,4311.9,1.27302162]
[1757300987457,0.8618,4312.0,4311.9,0.4214]
[1757300988463,0.8618,4312.0,4311.9,0.2087]
[1757300988656,0.5501,4311.5,4311.4,0.2782]
[1757300988857,0.8618,4311.5,4311.4,0.2782]
[1757300989054,0.8618,4311.5,4311.4,0.2087]
[1757300989255,0.8618,4311.5,4311.4,0.4214]
[1757300989462,0.8618,4311.5,4311.4,0.7431]
[1757300989862,0.3117,4311.5,4311.4,0.7431]
[1757300990966,0.5254,4311.5,4311.4,0.7431]
[1757300992462,0.3117,4311.9,4311.4,0.4214]
[1757300992667,0.3117,4311.9,4311.3,4.05942162]
[1757300992668,0.5254,4311.9,4311.8,0.7431]
[1757300992862,0.7394,4311.9,4311.8,0.4214]
[1757300993062,0.5501,4311.5,4311.4,0.5304]
[1757300993267,0.8618,4311.5,4311.4,0.2087]
[1757300993668,0.8618,4311.5,4311.4,0.4214]
[1757300994069,0.8618,4311.5,4311.4,0.7431]
[1757300999166,0.3117,4311.4,4311.3,3.2078]
[1757300999368,0.7394,4311.4,4311.3,3.4165]
[1757300999864,0.7394,4311.4,4311.3,3.6292]
[1757301000059,0.7394,4311.4,4311.3,3.9509]
[1757301000366,0.7394,4311.4,4311.2,0.85162162]
[1757301000367,0.1224,4311.0,4310.8,3.2078]
[1757301000570,1.71342162,4311.0,4310.8,3.2078]
[1757301000771,0.7394,4310.9,4310.8,3.2078]
[1757301001263,0.7394,4310.9,4310.8,3.4165]
[1757301001468,0.7394,4310.9,4310.8,3.2078]
[1757301003369,0.7394,4310.3,4310.2,3.4165]
[1757301003567,0.7394,4310.3,4310.2,3.6292]
[1757301003764,0.7394,4310.3,4310.2,3.9509]
[1757301005370,0.7394,4310.3,4310.2,3.6292]
[1757301006265,0.7394,4310.3,4310.2,3.9386]
[1757301007471,0.235,4310.9,4310.3,0.3094]
[1757301007776,0.4119,4310.9,4310.8,0.4056]
[1757301008071,0.5329,4310.5,4310.4,0.2054]
[1757301008278,0.83,4310.5,4310.4,0.2054]
[1757301008678,0.83,4310.5,4310.4,0.715]
[1757301009178,0.709,4310.5,4310.4,0.715]
[1757301009770,0.83,4310.5,4310.4,0.715]
[1757301009973,0.4119,4310.3,4310.2,3.4132]
[1757301010174,0.709,4310.3,4310.2,3.4132]
[1757301010376,0.709,4310.3,4310.2,3.2078]
[1757301010570,0.709,4310.3,4309.8,0.0696]
[1757301010571,0.4119,4309.9,4309.8,0.275]
[1757301010772,0.709,4309.9,4309.8,0.275]
[1757301010973,0.709,4309.9,4309.8,0.2054]
[1757301011272,0.709,4309.9,4309.8,0.4056]
[1757301011472,0.709,4309.9,4309.8,0.715]
[1757301012778,0.5066,4310.7,4310.6,0.4056]
[1757301012979,0.5066,4310.7,4310.6,0.715]
[1757301013173,0.709,4310.7,4310.6,0.715]
[1757301013374,0.709,4310.4,4310.3,0.0696]
[1757301013777,0.2971,4310.8,4310.3,0.4752]
[1757301013976,0.709,4310.9,4310.8,0.2054]
[1757301014172,0.709,4310.9,4310.8,0.4056]
[1757301014382,0.709,4310.9,4310.8,0.715]
[1757301014575,3.4173,4311.4,4311.3,0.4056]
[1757301014780,0.709,4311.4,4311.3,0.4056]
[1757301015486,0.709,4311.4,4311.3,0.2054]
[1757301016380,0.709,4310.9,4310.8,3.4132]
[1757301017086,0.709,4310.9,4310.8,3.6134]
[1757301017285,0.2971,4311.2,4310.9,0.3094]
[1757301017586,0.5066,4311.4,4311.3,0.715]
[1757301017888,3.5049,4311.5,4311.3,0.4056]
[1757301018088,3.5049,4311.5,4311.4,0.715]
[1757301018283,1.42570302,4312.7,4311.8,0.4056]
[1757301018284,3.2078,4312.6,4311.8,0.4056]
[1757301018584,3.2078,4312.6,4312.3,0.2054]
[1757301018585,0.6469,4312.4,4312.3,0.2054]
[1757301018983,0.944,4312.4,4312.3,0.4056]
[1757301019182,0.944,4312.4,4312.3,0.2054]
[1757301019383,1.79562162,4312.4,4312.3,0.2054]
[1757301020088,1.56062162,4312.4,4312.3,0.2054]
[1757301021993,1.56062162,4312.4,4312.3,0.4056]
[1757301022196,0.709,4312.4,4312.3,0.4056]
[1757301022382,0.709,4312.4,4311.9,0.3094]
[1757301022588,0.83,4312.0,4311.9,0.715]
[1757301024491,0.709,4312.0,4311.9,0.715]
[1757301024692,0.2971,4312.4,4312.0,0.4293]
[1757301024892,0.2971,4312.4,4312.3,0.715]
[1757301025084,3.2078,4312.6,4312.1,0.85162162]
[1757301025085,3.5049,4312.6,4312.5,0.4056]
[1757301025391,0.2971,4312.6,4312.5,0.715]
[1757301025893,0.5066,4312.6,4312.5,0.715]
[1757301026484,0.2971,4312.9,4312.5,0.4056]
[1757301026689,0.83,4313.0,4312.9,0.4056]
[1757301028894,0.5066,4313.0,4312.9,0.715]
[1757301029100,0.2971,4313.0,4312.9,0.715]
[1757301029299,0.5066,4313.0,4312.9,0.715]
[1757301030502,0.2971,4313.0,4312.9,0.715]
[1757301030705,0.5066,4313.0,4312.9,0.715]
[1757301031093,0.2971,4313.2,4313.1,0.4056]
[1757301031292,0.2971,4313.2,4313.1,0.715]
[1757301031602,0.5066,4313.2,4313.1,0.715]
[1757301033204,0.709,4313.2,4313.1,0.715]
[1757301033598,0.709,4313.2,4313.1,0.4056]
[1757301034999,0.121,4313.0,4312.9,3.2078]
[1757301035305,0.833,4313.0,4312.9,3.2773]
[1757301035504,0.833,4313.0,4312.9,0.0695]
[1757301036001,0.5274,4313.0,4312.4,3.2078]
[1757301036205,0.528,4312.0,4311.9,3.2078]
[1757301036404,0.8336,4312.0,4311.9,3.2078]
[1757301036905,0.8336,4312.0,4311.9,3.4033]
[1757301037108,0.8336,4312.0,4311.9,3.9238]
[1757301037998,0.8336,4312.0,4311.9,3.6074]
[1757301039106,0.8336,4312.0,4311.9,3.9238]
[1757301041308,0.712,4312.0,4311.9,3.9238]
[1757301041498,0.5139,4312.0,4311.9,3.9238]
[1757301041700,0.3566,4312.5,4311.9,3.9238]
[1757301041903,0.712,4312.4,4312.3,0.716]
[1757301042110,0.5139,4312.9,4312.8,0.3996]
[1757301042404,0.5139,4312.9,4312.8,0.716]
[1757301043111,0.712,4312.9,4312.8,0.716]
[1757301045311,0.712,4312.9,4312.8,0.3996]
[1757301045512,0.8336,4312.5,4312.4,3.4033]
[1757301045808,0.712,4312.5,4312.4,3.9238]
[1757301046110,0.5139,4312.5,4312.4,3.9238]
[1757301047111,0.121,4313.0,4312.4,3.9238]
[1757301047309,0.5139,4312.6,4312.5,0.716]
[1757301047504,0.712,4312.6,4312.5,0.716]
[1757301048011,0.5139,4312.6,4312.5,0.716]
[1757301048309,0.712,4313.0,4312.9,0.716]
[1757301048610,1.35601354,4313.0,4312.9,0.3996]
[1757301049809,2.36251594,4313.0,4312.3,0.235]
[1757301050007,2.36251594,4313.0,4312.3,0.1955]
[1757301050008,0.712,4312.4,4312.3,0.1955]
[1757301050213,1.23441354,4312.4,4312.0,0.3164]
[1757301050413,0.712,4312.4,4312.3,0.1955]
[1757301050613,1.23451262,4312.4,4312.3,0.1955]
[1757301055512,1.23451262,4312.4,4312.0,0.3164]
[1757301055718,0.712,4312.4,4312.0,0.3164]
[1757301056216,0.1216,4312.0,4311.9,3.4033]
[1757301056414,0.8336,4312.0,4311.9,3.4033]
[1757301056715,0.8336,4312.0,4311.9,3.9238]
[1757301058014,0.8336,4312.0,4311.9,3.4033]
[1757301058211,0.8336,4311.5,4311.4,3.2078]
[1757301058711,0.712,4310.9,4310.4,0.3164]
[1757301059015,0.8336,4310.5,4310.1,0.3164]
[1757301059311,0.528,4310.5,4309.8,3.2078]
[1757301059506,0.712,4309.9,4309.3,0.235]
[1757301059908,0.3056,4309.8,4309.2,3.2078]
[1757301060102,0.712,4309.3,4309.2,3.9238]
[1757301060307,0.712,4309.3,4309.2,3.2078]
[1757301060510,0.4064,4309.3,4308.7,3.2078]
[1757301060704,4.3359024,4309.5,4308.7,3.2078]
[1757301060905,0.712,4308.8,4308.7,3.2078]
[1757301061512,0.712,4308.8,4308.7,3.4033]
[1757301062215,0.712,4308.8,4308.7,3.9238]
[1757301062613,0.4433,4309.1,4309.0,0.3996]
[1757301062922,0.5139,4309.1,4309.0,0.716]
[1757301063216,3.3294,4309.5,4309.0,0.716]
[1757301063407,3.9567,4309.5,4309.4,0.716]
[1757301063721,1.0686,4309.5,4309.4,0.3996]
[1757301064016,0.763,4309.5,4309.4,0.1955]
[1757301064218,1.0686,4309.5,4309.4,0.716]
[1757301064718,0.235,4309.6,4309.5,0.3164]
[1757301064916,0.947,4309.9,4309.8,0.3996]
[1757301065107,0.947,4309.9,4309.8,0.716]
[1757301066717,0.712,4309.9,4309.8,0.716]
[1757301067317,0.712,4309.9,4309.8,0.3996]
[1757301068116,0.712,4309.9,4309.8,0.1955]
[1757301068313,0.413,4309.5,4309.4,3.9114]
[1757301068508,0.8291,4309.5,4309.4,3.6116]
[1757301068715,0.2921,4309.4,4308.9,3.7426]
[1757301068909,0.7082,4309.4,4309.3,0.2063]
[1757301069218,0.7082,4309.4,4309.3,0.7036]
[1757301069615,3.2078,4310.1,4309.3,0.7036]
[1757301069820,0.9432,4309.9,4309.8,0.4038]
[1757301070209,0.9432,4309.9,4309.8,0.7036]
[1757301070620,0.9432,4309.9,4309.8,0.4038]